[Event "Titled Tuesday Blitz August 22 Early 2023"]
[White "Wagner, Dennis"]
[Black "Maus7"]
[WhiteFideId "24650684"]
[WhiteElo "2750"]
[BlackElo "2548"]
[Result "1-0"]
[Round "10"]
[TimeControl "180+1"]
[Date "2023.08.22"]
[WhiteClock "0:02:02"]
[BlackClock "0:00:02"]
[Board "43"]

1. d4 {[%clk 0:03:00]}  Nf6 {[%clk 0:02:59]} 2. Nf3 {[%clk 0:03:00]}  d5 {[%clk 0:02:59]} 3. c4 {[%clk 0:03:00]}  e6 {[%clk 0:02:59]} 4. g3 {[%clk 0:03:01]}  dxc4 {[%clk 0:02:58]} 5. Bg2 {[%clk 0:03:02]}  a6 {[%clk 0:02:59]} 6. O-O {[%clk 0:03:02]}  Nc6 {[%clk 0:02:59]} 7. a4 {[%clk 0:02:57]}  Rb8 {[%clk 0:02:55]} 8. a5 {[%clk 0:02:57]}  Bb4 {[%clk 0:02:55]} 9. Na3 {[%clk 0:02:57]}  Nxa5 {[%clk 0:02:24]} 10. Nxc4 {[%clk 0:02:46]}  Nxc4 {[%clk 0:02:25]} 11. Qa4+ {[%clk 0:02:46]}  b5 {[%clk 0:01:54]} 12. Qxb4 {[%clk 0:02:45]}  Nd5 {[%clk 0:01:55]} 13. Qc5 {[%clk 0:02:24]}  Qd6 {[%clk 0:01:50]} 14. b3 {[%clk 0:02:24]}  Ncb6 {[%clk 0:01:43]} 15. e4 {[%clk 0:02:22]}  Nb4 {[%clk 0:00:59]} 16. Qc3 {[%clk 0:02:07]}  Nc6 {[%clk 0:00:24]} 17. Bf4 {[%clk 0:02:07]}  Qd7 {[%clk 0:00:22]} 18. d5 {[%clk 0:02:03]}  exd5 {[%clk 0:00:20]} 19. exd5 {[%clk 0:02:03]}  Nxd5 {[%clk 0:00:21]} 20. Qxg7 {[%clk 0:02:03]}  Rf8 {[%clk 0:00:19]} 21. Rfe1+ {[%clk 0:02:02]}  Nde7 {[%clk 0:00:02]} 22. Bh6 {[%clk 0:02:02]} 1-0


[Site "https://www.chess.com"]

[Event "Titled Tuesday Blitz August 22 Early 2023"]
[White "LeoLV10"]
[Black "Preotu, Razvan"]
[BlackFideId "2613280"]
[WhiteElo "2491"]
[BlackElo "2717"]
[Result "0-1"]
[Round "10"]
[TimeControl "180+1"]
[Date "2023.08.22"]
[WhiteClock "0:00:06"]
[BlackClock "0:00:08"]
[Board "44"]

1. e4 {[%clk 0:03:00]}  c5 {[%clk 0:02:54]} 2. Nf3 {[%clk 0:03:00]}  d6 {[%clk 0:02:54]} 3. d4 {[%clk 0:03:01]}  cxd4 {[%clk 0:02:55]} 4. Nxd4 {[%clk 0:03:02]}  Nf6 {[%clk 0:02:55]} 5. Nc3 {[%clk 0:03:02]}  a6 {[%clk 0:02:55]} 6. Bg5 {[%clk 0:03:03]}  e6 {[%clk 0:02:54]} 7. f4 {[%clk 0:03:01]}  Be7 {[%clk 0:02:51]} 8. Qf3 {[%clk 0:03:00]}  Qc7 {[%clk 0:02:51]} 9. O-O-O {[%clk 0:02:59]}  Nbd7 {[%clk 0:02:51]} 10. g4 {[%clk 0:02:58]}  b5 {[%clk 0:02:50]} 11. a3 {[%clk 0:02:55]}  Rb8 {[%clk 0:02:38]} 12. h4 {[%clk 0:02:50]}  b4 {[%clk 0:02:32]} 13. axb4 {[%clk 0:02:49]}  Rxb4 {[%clk 0:02:33]} 14. Nb3 {[%clk 0:02:43]}  Bb7 {[%clk 0:02:28]} 15. Rd4 {[%clk 0:02:27]}  Rxd4 {[%clk 0:02:12]} 16. Nxd4 {[%clk 0:02:28]}  Nc5 {[%clk 0:01:55]} 17. Bd3 {[%clk 0:02:13]}  h6 {[%clk 0:01:52]} 18. Bxf6 {[%clk 0:02:05]}  Bxf6 {[%clk 0:01:53]} 19. Nde2 {[%clk 0:02:02]}  Qa5 {[%clk 0:00:50]} 20. Kb1 {[%clk 0:00:48]}  Qb4 {[%clk 0:00:49]} 21. g5 {[%clk 0:00:48]}  hxg5 {[%clk 0:00:42]} 22. hxg5 {[%clk 0:00:46]}  Rxh1+ {[%clk 0:00:43]} 23. Qxh1 {[%clk 0:00:46]}  Bxc3 {[%clk 0:00:29]} 24. Nxc3 {[%clk 0:00:44]}  Qd4 {[%clk 0:00:28]} 25. Ne2 {[%clk 0:00:32]}  Qe3 {[%clk 0:00:27]} 26. Qh8+ {[%clk 0:00:31]}  Ke7 {[%clk 0:00:25]} 27. Nc1 {[%clk 0:00:19]}  Bxe4 {[%clk 0:00:24]} 28. Qxg7 {[%clk 0:00:19]}  Nxd3 {[%clk 0:00:19]} 29. Qf6+ {[%clk 0:00:17]}  Ke8 {[%clk 0:00:19]} 30. cxd3 {[%clk 0:00:17]}  Bxd3+ {[%clk 0:00:20]} 31. Nxd3 {[%clk 0:00:17]}  Qxd3+ {[%clk 0:00:21]} 32. Ka2 {[%clk 0:00:18]}  Qd5+ {[%clk 0:00:21]} 33. Ka3 {[%clk 0:00:16]}  a5 {[%clk 0:00:10]} 34. Qh8+ {[%clk 0:00:16]}  Kd7 {[%clk 0:00:10]} 35. Qf6 {[%clk 0:00:16]}  e5 {[%clk 0:00:07]} 36. fxe5 {[%clk 0:00:15]}  dxe5 {[%clk 0:00:08]} 37. Qf5+ {[%clk 0:00:14]}  Qe6 {[%clk 0:00:06]} 38. Qd3+ {[%clk 0:00:14]}  Ke7 {[%clk 0:00:06]} 39. Qe3 {[%clk 0:00:13]}  Qd6+ {[%clk 0:00:06]} 40. Ka2 {[%clk 0:00:12]}  Qd5+ {[%clk 0:00:05]} 41. Kb1 {[%clk 0:00:11]}  Ke6 {[%clk 0:00:06]} 42. Qh3+ {[%clk 0:00:11]}  Kd6 {[%clk 0:00:05]} 43. Qa3+ {[%clk 0:00:11]}  Qc5 {[%clk 0:00:05]} 44. Qd3+ {[%clk 0:00:11]}  Qd4 {[%clk 0:00:03]} 45. Qa6+ {[%clk 0:00:11]}  Ke7 {[%clk 0:00:03]} 46. Qxa5 {[%clk 0:00:09]}  Qg1+ {[%clk 0:00:03]} 47. Ka2 {[%clk 0:00:10]}  Qxg5 {[%clk 0:00:03]} 48. Qc5+ {[%clk 0:00:10]}  Ke6 {[%clk 0:00:04]} 49. Qc6+ {[%clk 0:00:10]}  Kf5 {[%clk 0:00:03]} 50. Qf3+ {[%clk 0:00:09]}  Qf4 {[%clk 0:00:04]} 51. Qh3+ {[%clk 0:00:09]}  Kg6 {[%clk 0:00:04]} 52. Qg2+ {[%clk 0:00:09]}  Kf6 {[%clk 0:00:04]} 53. Qc6+ {[%clk 0:00:09]}  Kg7 {[%clk 0:00:04]} 54. Qg2+ {[%clk 0:00:10]}  Kh6 {[%clk 0:00:03]} 55. Qh3+ {[%clk 0:00:10]}  Kg6 {[%clk 0:00:04]} 56. Qg2+ {[%clk 0:00:10]}  Qg5 {[%clk 0:00:05]} 57. Qe4+ {[%clk 0:00:09]}  Kg7 {[%clk 0:00:05]} 58. b4 {[%clk 0:00:08]}  Qd2+ {[%clk 0:00:05]} 59. Kb3 {[%clk 0:00:08]}  Qd6 {[%clk 0:00:04]} 60. Qg4+ {[%clk 0:00:08]}  Kf6 {[%clk 0:00:05]} 61. Qh4+ {[%clk 0:00:08]}  Ke6 {[%clk 0:00:05]} 62. Qh6+ {[%clk 0:00:08]}  f6 {[%clk 0:00:05]} 63. Qe3 {[%clk 0:00:05]}  Qd5+ {[%clk 0:00:05]} 64. Ka4 {[%clk 0:00:04]}  Qa2+ {[%clk 0:00:04]} 65. Kb5 {[%clk 0:00:04]}  f5 {[%clk 0:00:03]} 66. Qh6+ {[%clk 0:00:03]}  Kd5 {[%clk 0:00:03]} 67. Qc6+ {[%clk 0:00:03]}  Kd4 {[%clk 0:00:03]} 68. Qc5+ {[%clk 0:00:03]}  Ke4 {[%clk 0:00:04]} 69. Qc6+ {[%clk 0:00:01]}  Qd5+ {[%clk 0:00:04]} 70. Qc5 {[%clk 0:00:02]}  f4 {[%clk 0:00:04]} 71. Qxd5+ {[%clk 0:00:02]}  Kxd5 {[%clk 0:00:05]} 72. Kb6 {[%clk 0:00:03]}  f3 {[%clk 0:00:06]} 73. b5 {[%clk 0:00:03]}  f2 {[%clk 0:00:07]} 74. Ka7 {[%clk 0:00:04]}  f1=Q {[%clk 0:00:08]} 75. b6 {[%clk 0:00:05]}  Qb5 {[%clk 0:00:08]} 76. b7 {[%clk 0:00:05]}  Kc6 {[%clk 0:00:08]} 77. b8=Q {[%clk 0:00:06]}  Qa5# {[%clk 0:00:08]} 0-1


[Site "https://www.chess.com"]

[Event "Titled Tuesday Blitz August 22 Early 2023"]
[White "Rosen, Eric"]
[Black "Plazuelo Pascual, Juan"]
[WhiteFideId "2032562"]
[BlackFideId "32059566"]
[WhiteElo "2594"]
[BlackElo "2688"]
[Result "0-1"]
[Round "10"]
[TimeControl "180+1"]
[Date "2023.08.22"]
[WhiteClock "0:00:02"]
[BlackClock "0:00:07"]
[Board "50"]

1. e4 {[%clk 0:02:57]}  c5 {[%clk 0:03:00]} 2. c3 {[%clk 0:02:56]}  Nf6 {[%clk 0:02:56]} 3. e5 {[%clk 0:02:55]}  Nd5 {[%clk 0:02:57]} 4. Nf3 {[%clk 0:02:55]}  d6 {[%clk 0:02:55]} 5. Bc4 {[%clk 0:02:52]}  Nb6 {[%clk 0:02:53]} 6. e6 {[%clk 0:02:52]}  fxe6 {[%clk 0:02:27]} 7. Bb3 {[%clk 0:02:35]}  g6 {[%clk 0:02:03]} 8. Ng5 {[%clk 0:02:25]}  c4 {[%clk 0:01:37]} 9. Bxc4 {[%clk 0:02:03]}  Nxc4 {[%clk 0:01:38]} 10. Qa4+ {[%clk 0:02:03]}  Nc6 {[%clk 0:01:38]} 11. Qxc4 {[%clk 0:02:03]}  Qa5 {[%clk 0:01:38]} 12. d4 {[%clk 0:01:54]}  Qf5 {[%clk 0:01:36]} 13. Na3 {[%clk 0:01:34]}  Bd7 {[%clk 0:01:28]} 14. Qe2 {[%clk 0:01:16]}  h6 {[%clk 0:01:00]} 15. g4 {[%clk 0:01:05]}  Qd5 {[%clk 0:00:53]} 16. Ne4 {[%clk 0:00:58]}  e5 {[%clk 0:00:40]} 17. Nb5 {[%clk 0:00:56]}  O-O-O {[%clk 0:00:40]} 18. c4 {[%clk 0:00:46]}  Nxd4 {[%clk 0:00:40]} 19. cxd5 {[%clk 0:00:27]}  Nxe2 {[%clk 0:00:39]} 20. Nxa7+ {[%clk 0:00:26]}  Kb8 {[%clk 0:00:39]} 21. Kxe2 {[%clk 0:00:27]}  Kxa7 {[%clk 0:00:38]} 22. Be3+ {[%clk 0:00:25]}  Kb8 {[%clk 0:00:31]} 23. f3 {[%clk 0:00:25]}  e6 {[%clk 0:00:25]} 24. Nc3 {[%clk 0:00:24]}  Be7 {[%clk 0:00:17]} 25. Rhd1 {[%clk 0:00:23]}  h5 {[%clk 0:00:14]} 26. g5 {[%clk 0:00:21]}  h4 {[%clk 0:00:14]} 27. a4 {[%clk 0:00:18]}  Rh5 {[%clk 0:00:13]} 28. Ne4 {[%clk 0:00:13]}  exd5 {[%clk 0:00:11]} 29. Rxd5 {[%clk 0:00:14]}  Bc6 {[%clk 0:00:11]} 30. Rd2 {[%clk 0:00:06]}  h3 {[%clk 0:00:06]} 31. Rg1 {[%clk 0:00:06]}  Rh4 {[%clk 0:00:06]} 32. Nc3 {[%clk 0:00:05]}  d5 {[%clk 0:00:05]} 33. Bb6 {[%clk 0:00:04]}  Rd7 {[%clk 0:00:06]} 34. Nb5 {[%clk 0:00:04]}  Rxa4 {[%clk 0:00:05]} 35. Nc3 {[%clk 0:00:04]}  Ra6 {[%clk 0:00:06]} 36. Bf2 {[%clk 0:00:04]}  d4 {[%clk 0:00:06]} 37. Ne4 {[%clk 0:00:04]}  Bb5+ {[%clk 0:00:06]} 38. Ke1 {[%clk 0:00:03]}  Ra1+ {[%clk 0:00:07]} 39. Rd1 {[%clk 0:00:04]}  Bb4+ {[%clk 0:00:06]} 40. Nd2 {[%clk 0:00:04]}  Ra2 {[%clk 0:00:06]} 41. Rb1 {[%clk 0:00:02]}  Bd3 {[%clk 0:00:06]} 42. Rd1 {[%clk 0:00:02]}  Rxb2 {[%clk 0:00:07]} 43. Rg3 {[%clk 0:00:03]}  Rc7 {[%clk 0:00:06]} 44. f4 {[%clk 0:00:02]}  e4 {[%clk 0:00:07]} 45. Bxd4 {[%clk 0:00:02]}  Bxd2+ {[%clk 0:00:06]} 46. Rxd2 {[%clk 0:00:02]}  Rc1+ {[%clk 0:00:07]} 47. Kf2 {[%clk 0:00:01]}  Rxd2+ {[%clk 0:00:07]} 48. Ke3 {[%clk 0:00:02]}  Re2# {[%clk 0:00:07]} 0-1


[Site "https://www.chess.com"]

[Event "Titled Tuesday Blitz August 22 Early 2023"]
[White "Korchmar, Vasiliy"]
[Black "Ribeiro, Matheus Mendes Domingues"]
[WhiteFideId "24131750"]
[BlackFideId "324226923"]
[WhiteElo "2679"]
[BlackElo "2572"]
[Result "0-1"]
[Round "10"]
[TimeControl "180+1"]
[Date "2023.08.22"]
[WhiteClock "0:00:02"]
[BlackClock "0:00:02"]
[Board "54"]

1. e4 {[%clk 0:03:00]}  e6 {[%clk 0:03:00]} 2. d4 {[%clk 0:03:01]}  d5 {[%clk 0:03:00]} 3. e5 {[%clk 0:03:01]}  c5 {[%clk 0:03:00]} 4. c3 {[%clk 0:03:02]}  Nc6 {[%clk 0:02:59]} 5. Nf3 {[%clk 0:03:02]}  Nge7 {[%clk 0:02:58]} 6. Na3 {[%clk 0:03:02]}  cxd4 {[%clk 0:02:57]} 7. cxd4 {[%clk 0:03:03]}  Nf5 {[%clk 0:02:58]} 8. Nc2 {[%clk 0:03:03]}  f6 {[%clk 0:02:58]} 9. Bd3 {[%clk 0:03:00]}  fxe5 {[%clk 0:02:57]} 10. Bxf5 {[%clk 0:02:58]}  exf5 {[%clk 0:02:57]} 11. dxe5 {[%clk 0:02:58]}  Be6 {[%clk 0:02:48]} 12. O-O {[%clk 0:02:49]}  Be7 {[%clk 0:02:37]} 13. Ncd4 {[%clk 0:02:49]}  Qd7 {[%clk 0:02:35]} 14. Bg5 {[%clk 0:02:41]}  O-O {[%clk 0:02:29]} 15. Bxe7 {[%clk 0:02:38]}  Qxe7 {[%clk 0:02:26]} 16. Rc1 {[%clk 0:02:32]}  Rac8 {[%clk 0:02:10]} 17. Qa4 {[%clk 0:02:29]}  Nxd4 {[%clk 0:02:02]} 18. Nxd4 {[%clk 0:02:30]}  a6 {[%clk 0:01:55]} 19. Qa3 {[%clk 0:02:22]}  Qxa3 {[%clk 0:01:51]} 20. bxa3 {[%clk 0:02:23]}  Kf7 {[%clk 0:01:50]} 21. f4 {[%clk 0:02:22]}  Rc4 {[%clk 0:01:46]} 22. Rcd1 {[%clk 0:02:20]}  Rfc8 {[%clk 0:01:42]} 23. Rf3 {[%clk 0:02:19]}  Rc1 {[%clk 0:01:15]} 24. Rxc1 {[%clk 0:02:19]}  Rxc1+ {[%clk 0:01:16]} 25. Kf2 {[%clk 0:02:20]}  Rc4 {[%clk 0:01:01]} 26. Ne2 {[%clk 0:02:05]}  Rc2 {[%clk 0:00:54]} 27. Rc3 {[%clk 0:01:58]}  Rxc3 {[%clk 0:00:44]} 28. Nxc3 {[%clk 0:01:59]}  d4 {[%clk 0:00:45]} 29. Ne2 {[%clk 0:01:59]}  Bxa2 {[%clk 0:00:39]} 30. Nxd4 {[%clk 0:01:59]}  g6 {[%clk 0:00:38]} 31. a4 {[%clk 0:01:55]}  a5 {[%clk 0:00:33]} 32. Ke3 {[%clk 0:01:51]}  Ke7 {[%clk 0:00:22]} 33. g3 {[%clk 0:01:48]}  Bf7 {[%clk 0:00:22]} 34. Ne2 {[%clk 0:01:42]}  Be8 {[%clk 0:00:21]} 35. Nc3 {[%clk 0:01:42]}  Kd7 {[%clk 0:00:20]} 36. Kd4 {[%clk 0:01:39]}  Kc6 {[%clk 0:00:21]} 37. Nb5 {[%clk 0:01:35]}  Bf7 {[%clk 0:00:18]} 38. Nc3 {[%clk 0:01:30]}  Bb3 {[%clk 0:00:14]} 39. h3 {[%clk 0:01:26]}  b6 {[%clk 0:00:13]} 40. g4 {[%clk 0:01:19]}  fxg4 {[%clk 0:00:12]} 41. hxg4 {[%clk 0:01:20]}  h5 {[%clk 0:00:13]} 42. f5 {[%clk 0:00:51]}  h4 {[%clk 0:00:13]} 43. e6 {[%clk 0:00:17]}  h3 {[%clk 0:00:06]} 44. Ne4 {[%clk 0:00:17]}  h2 {[%clk 0:00:06]} 45. Ng3 {[%clk 0:00:16]}  Kd6 {[%clk 0:00:04]} 46. Ke3 {[%clk 0:00:06]}  Bxa4 {[%clk 0:00:04]} 47. Kf4 {[%clk 0:00:07]}  Bc6 {[%clk 0:00:03]} 48. Kg5 {[%clk 0:00:06]}  gxf5 {[%clk 0:00:03]} 49. gxf5 {[%clk 0:00:06]}  h1=Q {[%clk 0:00:03]} 50. Nxh1 {[%clk 0:00:06]}  Bxh1 {[%clk 0:00:03]} 51. Kg6 {[%clk 0:00:04]}  Be4 {[%clk 0:00:02]} 52. Kf7 {[%clk 0:00:05]}  Bxf5 {[%clk 0:00:01]} 53. e7 {[%clk 0:00:02]}  Bd7 {[%clk 0:00:02]} 0-1


[Site "https://www.chess.com"]

[Event "Titled Tuesday Blitz August 22 Early 2023"]
[White "Martinez Reyes, Pedro Ramon"]
[Black "Gubajdullin, Alexei"]
[WhiteFideId "3901807"]
[BlackFideId "4141202"]
[WhiteElo "2570"]
[BlackElo "2677"]
[Result "0-1"]
[Round "10"]
[TimeControl "180+1"]
[Date "2023.08.22"]
[WhiteClock "0:00:44"]
[BlackClock "0:00:49"]
[Board "55"]

1. d4 {[%clk 0:03:00]}  Nf6 {[%clk 0:02:59]} 2. c4 {[%clk 0:02:59]}  g6 {[%clk 0:02:59]} 3. Nc3 {[%clk 0:02:58]}  Bg7 {[%clk 0:02:58]} 4. e4 {[%clk 0:02:56]}  d6 {[%clk 0:02:58]} 5. Bd3 {[%clk 0:02:57]}  O-O {[%clk 0:02:58]} 6. Nge2 {[%clk 0:02:57]}  Nc6 {[%clk 0:02:58]} 7. O-O {[%clk 0:02:56]}  e5 {[%clk 0:02:58]} 8. d5 {[%clk 0:02:56]}  Nd4 {[%clk 0:02:59]} 9. Rb1 {[%clk 0:02:55]}  c5 {[%clk 0:02:58]} 10. dxc6 {[%clk 0:02:54]}  bxc6 {[%clk 0:02:58]} 11. b4 {[%clk 0:02:55]}  d5 {[%clk 0:02:48]} 12. exd5 {[%clk 0:02:48]}  cxd5 {[%clk 0:02:48]} 13. Nxd4 {[%clk 0:02:44]}  exd4 {[%clk 0:02:48]} 14. Nxd5 {[%clk 0:02:43]}  Nxd5 {[%clk 0:02:48]} 15. cxd5 {[%clk 0:02:43]}  Bb7 {[%clk 0:02:47]} 16. a4 {[%clk 0:02:23]}  Bxd5 {[%clk 0:02:47]} 17. Bd2 {[%clk 0:02:18]}  Rc8 {[%clk 0:02:37]} 18. Re1 {[%clk 0:02:06]}  Qd6 {[%clk 0:02:22]} 19. Qg4 {[%clk 0:01:59]}  Be5 {[%clk 0:02:20]} 20. h3 {[%clk 0:01:54]}  h5 {[%clk 0:02:20]} 21. Qg5 {[%clk 0:01:53]}  Bf6 {[%clk 0:02:14]} 22. Qf4 {[%clk 0:01:44]}  Qxf4 {[%clk 0:02:10]} 23. Bxf4 {[%clk 0:01:40]}  Rc3 {[%clk 0:02:10]} 24. Red1 {[%clk 0:01:38]}  Bb3 {[%clk 0:02:08]} 25. Rd2 {[%clk 0:01:37]}  Rxd3 {[%clk 0:02:05]} 26. Rxd3 {[%clk 0:01:37]}  Bc2 {[%clk 0:02:05]} 27. Rbd1 {[%clk 0:01:37]}  Bxd1 {[%clk 0:01:56]} 28. Rxd1 {[%clk 0:01:38]}  Rc8 {[%clk 0:01:56]} 29. Bd6 {[%clk 0:01:35]}  Rc2 {[%clk 0:01:52]} 30. Bc5 {[%clk 0:01:33]}  a6 {[%clk 0:01:52]} 31. Bxd4 {[%clk 0:01:32]}  Bxd4 {[%clk 0:01:36]} 32. Rxd4 {[%clk 0:01:31]}  Ra2 {[%clk 0:01:36]} 33. a5 {[%clk 0:01:30]}  Rb2 {[%clk 0:01:35]} 34. g4 {[%clk 0:01:31]}  h4 {[%clk 0:01:35]} 35. Kg2 {[%clk 0:01:30]}  g5 {[%clk 0:01:34]} 36. Rd5 {[%clk 0:01:28]}  f6 {[%clk 0:01:32]} 37. Rd6 {[%clk 0:01:28]}  Kf7 {[%clk 0:01:32]} 38. Rb6 {[%clk 0:01:26]}  Rb3 {[%clk 0:01:29]} 39. Kh2 {[%clk 0:01:22]}  Kg6 {[%clk 0:01:28]} 40. Kg2 {[%clk 0:01:20]}  Kf7 {[%clk 0:01:28]} 41. Rxa6 {[%clk 0:01:16]}  Rxb4 {[%clk 0:01:28]} 42. Rb6 {[%clk 0:01:16]}  Ra4 {[%clk 0:01:28]} 43. a6 {[%clk 0:01:16]}  Ra3 {[%clk 0:01:28]} 44. f3 {[%clk 0:01:08]}  Kg7 {[%clk 0:01:26]} 45. Rb7+ {[%clk 0:01:08]}  Kg6 {[%clk 0:01:26]} 46. a7 {[%clk 0:01:09]}  Ra2+ {[%clk 0:01:13]} 47. Kf1 {[%clk 0:01:08]}  f5 {[%clk 0:01:04]} 48. Rb6+ {[%clk 0:01:01]}  Kf7 {[%clk 0:01:04]} 49. gxf5 {[%clk 0:00:52]}  Rxa7 {[%clk 0:01:03]} 50. Rg6 {[%clk 0:00:53]}  Ra1+ {[%clk 0:01:02]} 51. Kf2 {[%clk 0:00:51]}  Ra2+ {[%clk 0:01:02]} 52. Ke3 {[%clk 0:00:51]}  Rh2 {[%clk 0:01:02]} 53. Rxg5 {[%clk 0:00:51]}  Rxh3 {[%clk 0:01:02]} 54. Kf4 {[%clk 0:00:51]}  Rh1 {[%clk 0:01:02]} 55. Rh5 {[%clk 0:00:52]}  h3 {[%clk 0:00:53]} 56. Ke5 {[%clk 0:00:47]}  h2 {[%clk 0:00:50]} 57. Rh7+ {[%clk 0:00:46]}  Kg8 {[%clk 0:00:50]} 58. Rh3 {[%clk 0:00:44]}  Re1+ {[%clk 0:00:49]} 0-1


[Site "https://www.chess.com"]

[Event "Titled Tuesday Blitz August 22 Early 2023"]
[White "Janaszak, Dawid"]
[Black "Sipila, Vilka"]
[WhiteFideId "1119206"]
[BlackFideId "505455"]
[WhiteElo "2514"]
[BlackElo "2631"]
[Result "1-0"]
[Round "10"]
[TimeControl "180+1"]
[Date "2023.08.22"]
[WhiteClock "0:01:09"]
[BlackClock "0:00:12"]
[Board "57"]

1. e4 {[%clk 0:03:00]}  d5 {[%clk 0:02:59]} 2. exd5 {[%clk 0:02:57]}  Qxd5 {[%clk 0:03:00]} 3. Nf3 {[%clk 0:02:56]}  Bg4 {[%clk 0:02:58]} 4. Be2 {[%clk 0:02:56]}  Nc6 {[%clk 0:02:47]} 5. O-O {[%clk 0:02:54]}  O-O-O {[%clk 0:02:47]} 6. Nc3 {[%clk 0:02:53]}  Qf5 {[%clk 0:02:42]} 7. h3 {[%clk 0:02:44]}  h5 {[%clk 0:02:42]} 8. d3 {[%clk 0:02:38]}  e6 {[%clk 0:02:41]} 9. Ng5 {[%clk 0:02:30]}  Bxe2 {[%clk 0:02:32]} 10. Nxe2 {[%clk 0:02:29]}  Be7 {[%clk 0:02:30]} 11. Ng3 {[%clk 0:02:28]}  Qg6 {[%clk 0:02:30]} 12. h4 {[%clk 0:02:22]}  Nf6 {[%clk 0:02:07]} 13. b4 {[%clk 0:02:13]}  Bxb4 {[%clk 0:02:00]} 14. Rb1 {[%clk 0:02:14]}  Bc5 {[%clk 0:02:00]} 15. Qf3 {[%clk 0:02:03]}  Bd6 {[%clk 0:02:01]} 16. Be3 {[%clk 0:01:53]}  Rd7 {[%clk 0:02:02]} 17. Rxb7 {[%clk 0:01:52]}  Nd5 {[%clk 0:01:15]} 18. Rfb1 {[%clk 0:01:45]}  Qf6 {[%clk 0:01:05]} 19. Qe4 {[%clk 0:01:34]}  Qc3 {[%clk 0:00:57]} 20. Qa4 {[%clk 0:01:19]}  Kd8 {[%clk 0:00:23]} 21. N3e4 {[%clk 0:01:17]}  Qa3 {[%clk 0:00:21]} 22. Qxc6 {[%clk 0:01:15]}  Ke7 {[%clk 0:00:20]} 23. Nxd6 {[%clk 0:01:12]}  Rxd6 {[%clk 0:00:17]} 24. Rxc7+ {[%clk 0:01:08]}  Nxc7 {[%clk 0:00:17]} 25. Qxc7+ {[%clk 0:01:09]}  Rd7 {[%clk 0:00:14]} 26. Bc5+ {[%clk 0:01:09]}  Kf6 {[%clk 0:00:12]} 27. Qf4+ {[%clk 0:01:09]} 1-0


[Site "https://www.chess.com"]

[Event "Titled Tuesday Blitz August 22 Early 2023"]
[White "Jovic, Stanoje"]
[Black "Shimanov, Aleksandr"]
[WhiteFideId "905020"]
[BlackFideId "4198603"]
[WhiteElo "2545"]
[BlackElo "2911"]
[Result "0-1"]
[Round "10"]
[TimeControl "180+1"]
[Date "2023.08.22"]
[WhiteClock "0:00:00"]
[BlackClock "0:01:04"]
[Board "58"]

1. c4 {[%clk 0:03:00]}  e5 {[%clk 0:02:53]} 2. g3 {[%clk 0:03:00]}  f5 {[%clk 0:02:53]} 3. Bg2 {[%clk 0:03:00]}  Nf6 {[%clk 0:02:52]} 4. d3 {[%clk 0:02:57]}  d6 {[%clk 0:02:52]} 5. Nc3 {[%clk 0:02:55]}  Be7 {[%clk 0:02:53]} 6. e4 {[%clk 0:02:55]}  Nc6 {[%clk 0:02:50]} 7. Nge2 {[%clk 0:02:52]}  O-O {[%clk 0:02:50]} 8. O-O {[%clk 0:02:47]}  fxe4 {[%clk 0:02:37]} 9. dxe4 {[%clk 0:02:46]}  Be6 {[%clk 0:02:37]} 10. b3 {[%clk 0:02:45]}  Nb8 {[%clk 0:02:31]} 11. h3 {[%clk 0:02:43]}  Nbd7 {[%clk 0:02:31]} 12. Be3 {[%clk 0:02:42]}  c6 {[%clk 0:02:31]} 13. Qd2 {[%clk 0:02:39]}  a6 {[%clk 0:02:31]} 14. a4 {[%clk 0:02:37]}  Nc5 {[%clk 0:02:16]} 15. Rfb1 {[%clk 0:02:32]}  a5 {[%clk 0:02:12]} 16. Nc1 {[%clk 0:02:21]}  Qe8 {[%clk 0:02:06]} 17. Nd3 {[%clk 0:02:18]}  Qh5 {[%clk 0:02:05]} 18. g4 {[%clk 0:02:10]}  Bxg4 {[%clk 0:02:05]} 19. hxg4 {[%clk 0:02:05]}  Nxg4 {[%clk 0:02:06]} 20. Nxc5 {[%clk 0:01:43]}  Qh2+ {[%clk 0:02:05]} 21. Kf1 {[%clk 0:01:43]}  dxc5 {[%clk 0:02:02]} 22. f3 {[%clk 0:01:39]}  Qg3 {[%clk 0:01:30]} 23. Bg1 {[%clk 0:01:07]}  Rxf3+ {[%clk 0:01:25]} 24. Bxf3 {[%clk 0:01:07]}  Qxf3+ {[%clk 0:01:26]} 25. Bf2 {[%clk 0:00:57]}  Rf8 {[%clk 0:01:25]} 26. Nd1 {[%clk 0:00:53]}  Bh4 {[%clk 0:01:22]} 27. Ra2 {[%clk 0:00:48]}  Qh1+ {[%clk 0:01:19]} 28. Ke2 {[%clk 0:00:45]}  Qxe4+ {[%clk 0:01:09]} 29. Be3 {[%clk 0:00:00]}  Qxb1 {[%clk 0:01:04]} 0-1


[Site "https://www.chess.com"]